fUSD/lending_fUSD_20250227
["ID","MTS","AMOUNT","RATE_DAILY","PERIOD"]
[354734631,1740653446050,-2634.14,0.00056164,120]
[354734633,1740653446059,-500.0,0.00056164,120]
[354734635,1740653446068,-500.0,0.00056164,120]
[354734637,1740653446077,-500.0,0.00056164,120]
[354734639,1740653446087,-3327.54,0.00056164,120]
[354734641,1740653446096,-500.0,0.00056164,120]
[354734643,1740653446106,-524.67,0.00056164,120]
[354734645,1740653446115,-500.0,0.00056164,120]
[354734647,1740653446124,-500.0,0.00056164,120]
[354734649,1740653446133,-2123.539916,0.00056164,120]
[354734651,1740653446143,-421.62,0.00056164,120]
[354734653,1740653446154,-1268.75,0.00056164,120]
[354734655,1740653446163,-500.0,0.00056164,120]
[354734657,1740653446172,-2639.83,0.00056164,120]
[354734659,1740653446182,-500.0,0.00056164,120]
[354734661,1740653446193,-500.0,0.00056164,120]
[354734663,1740653446202,-500.0,0.00056164,120]
[354734665,1740653446211,-500.0,0.00056164,120]
[354734667,1740653446221,-500.0,0.00056164,120]
[354734669,1740653446232,-7410.89,0.00056164,120]
[354734671,1740653446241,-500.0,0.00056164,120]
[354734673,1740653446250,-1074.69,0.00056164,120]
[354734675,1740653446259,-500.0,0.00056164,120]
[354734677,1740653446268,-500.0,0.00056164,120]
[354734679,1740653446278,-866.04,0.00056164,120]
[354734681,1740653446287,-3359.44,0.00056164,120]
[354734683,1740653446297,-598.74,0.00056164,120]
[354734685,1740653446306,-516.1,0.00056164,120]
[354734687,1740653446315,-577.69,0.00056164,120]
[354734689,1740653446324,-3100.27,0.00056164,120]
[354734691,1740653446333,-500.0,0.00056164,120]
[354734693,1740653446342,-1500.0,0.000564,10]
[354734695,1740653446352,-500.0,0.00056438,120]
[354734697,1740653446361,-700.71,0.00056438,120]
[354734699,1740653446370,-2634.14,0.00056438,120]
[354734701,1740653446379,-500.0,0.00056438,120]
[354734703,1740653446388,-500.0,0.00056438,120]
[354734705,1740653446397,-500.0,0.00056438,120]
[354734707,1740653446407,-3327.54,0.00056438,120]
[354734709,1740653446416,-500.0,0.00056438,120]
[354734711,1740653446425,-524.67,0.00056438,120]
[354734713,1740653446435,-500.0,0.00056438,120]
[354734715,1740653446444,-500.0,0.00056438,120]
[354734717,1740653446453,-2123.539916,0.00056438,120]
[354734719,1740653446463,-1268.75,0.00056438,120]
[354734721,1740653446472,-500.0,0.00056438,120]
[354734723,1740653446481,-448.13232874,0.00056438,120]
[354734725,1740653446493,-2191.69767126,0.00056438,120]
[354734727,1740653446503,-386.17,0.00056438,120]
[354734729,1740653446512,-500.0,0.00056438,120]
[354734731,1740653446522,-500.0,0.00056438,120]
[354734733,1740653446532,-500.0,0.00056438,120]
[354734735,1740653446541,-500.0,0.00056438,120]
[354734737,1740653446551,-3971.88565334,0.00056438,120]
[354734743,1740653446593,-3439.00434666,0.00056438,120]
[354734745,1740653446602,-500.0,0.00056438,120]
[354734747,1740653446611,-1074.69,0.00056438,120]
[354734749,1740653446620,-500.0,0.00056438,120]
[354734751,1740653446629,-170.25033167,0.00056438,120]
[354734752,1740653446638,-866.04,0.00056438,120]
[354734754,1740653446648,-1630.98345993,0.00056438,120]
[354736230,1740653577411,546.9585,0.000149,2]
[354736239,1740654533043,2840.85514784,0.00023,30]
[354736242,1740654631707,-210.0,0.000213,2]
[354736243,1740654631717,-150.0,0.00021833,2]
[354736244,1740654631726,-150.0,0.0002343,2]
[354736245,1740654631736,-150.0,0.0002343,2]
[354736246,1740654631745,-182.890395,0.00026106,2]
[354736247,1740654631754,-1578.19877318,0.00026106,2]
[354736248,1740654635043,-2562.68207923,0.00026106,2]
[354736249,1740654635055,-550.99707701,0.00026106,2]
[354736250,1740654635067,-10644.72353239,0.00026106,2]
[354736251,1740654635076,-176.138844,0.0002677,30]
[354736252,1740654635086,-153.56,0.00026849,2]
[354736253,1740654635095,-201.93271245,0.000269,4]
[354736254,1740654635104,-204.44224505,0.00028235,2]
[354736255,1740654635113,-150.0,0.00029586,120]
[354736256,1740654635122,-626.87690385,0.00030002,2]
[354736257,1740654635131,-150.0,0.00031509,120]
[354736258,1740654635140,-259.08153767,0.00032241,2]
[354736259,1740654635149,-153.56,0.00032968,2]
[354736260,1740654635158,-201.93271244,0.0003565,7]
[354736261,1740654635168,-159.02,0.00036019,2]
[354736262,1740654635176,-153.56,0.00039087,2]
[354736263,1740654635185,-210.51558892,0.00040312,2]
[354736264,1740654635194,-842.41305991,0.00041095,120]
[354736265,1740654635203,-150.0,0.00041604,120]
[354736266,1740654635212,-150.0,0.00044233,2]
[354736267,1740654635229,-201.93271244,0.000444,10]
[354736268,1740654635240,-278.42,0.00044871,2]
[354736269,1740654635250,-223.3,0.00044984,2]
[354736270,1740654635259,-150.0,0.00045024,7]
[354736271,1740654635268,-1034.43,0.00045024,2]
[354736272,1740654635278,-180.23,0.00045024,2]
[354736273,1740654635287,-1000.0,0.000451,2]
[354736274,1740654635297,-914.0,0.000451,4]
[354736275,1740654635306,-450.0,0.00045117,2]
[354736276,1740654635316,-284.74,0.00045162,2]
[354736277,1740654635325,-153.56,0.00045205,2]
[354736278,1740654635334,-175.57,0.00045249,2]
[354736279,1740654635344,-2275.67,0.00045456,2]
[354736280,1740654635353,-183.23,0.00045842,2]
[354736281,1740654635362,-463.85,0.00045969,2]
[354736282,1740654635372,-500.0,0.00045984,2]
[354736283,1740654635382,-154.2,0.00046,39]
[354736284,1740654635391,-154.2,0.00046,39]
[354736285,1740654635400,-154.2,0.00046,39]
[354736286,1740654635410,-154.2,0.00046,39]
[354736288,1740654635419,-600.0,0.00046783,120]
[354736290,1740654635429,-450.41,0.00046838,120]
[354736292,1740654635438,-722.01,0.00046981,2]
[354736294,1740654635447,-278.42,0.00047134,2]
[354736296,1740654635457,-150.0,0.0004714,2]
[354736298,1740654635467,-150.0,0.00047184,120]
[354736300,1740654635476,-928.42,0.00047402,2]
[354736302,1740654635486,-200.0,0.00047571,2]
[354736305,1740654635495,-208.26,0.0004763,120]
[354736309,1740654635504,-742.64,0.0004763,2]
[354736312,1740654635514,-520.294,0.0004763,81]
[354736315,1740654635523,-153.31,0.00047645,2]
[354736318,1740654635533,-1500.0,0.0004783,120]
[354736320,1740654635542,-1623.0,0.00047836,2]
[354736324,1740654635551,-784.0,0.00047836,2]
[354736326,1740654635562,-909.0,0.00047836,2]
[354736328,1740654635573,-540.0,0.00047836,2]
[354736330,1740654635583,-1267.0,0.00047836,2]
[354736332,1740654635592,-4031.0,0.00047836,2]
[354736333,1740654635601,-241.64,0.00047922,2]
[354736336,1740654635612,-250.0,0.00048027,120]
[354736337,1740654635622,-474.56,0.00048146,2]
[354736339,1740654635631,-1000.0,0.00048278,120]
[354736342,1740654635642,-150.0,0.00048554,120]
[354736344,1740654635652,-2000.0,0.00048636,120]
[354736346,1740654635661,-450.0,0.00048657,2]
[354736348,1740654635671,-150.0,0.000493,2]
[354736350,1740654635680,-200.0,0.000493,2]
[354736352,1740654635689,-278.42,0.00049398,2]
[354736354,1740654635699,-2130.0,0.000499,2]
[354736356,1740654635708,-250.17982005,0.000499,2]
[354736358,1740654635718,-1048.0,0.0005,13]
[354736360,1740654635727,-974.77771476,0.0005,30]
[354736362,1740654635736,-742.64,0.00050011,2]
[354736364,1740654635747,-154.2,0.000503,48]
[354736366,1740654635756,-154.2,0.000503,48]
[354736368,1740654635766,-154.2,0.000503,48]
[354736370,1740654635775,-154.2,0.000503,48]
[354736372,1740654635784,-154.2,0.000503,48]
[354736374,1740654635793,-154.2,0.000503,48]
[354736376,1740654635803,-154.2,0.000503,48]
[354736378,1740654635812,-154.2,0.000503,48]
[354736380,1740654635822,-1000.0,0.00050737,120]
[354736382,1740654635831,-1387.25,0.00050766,5]
[354736384,1740654635840,-26828.33,0.00050766,30]
[354736386,1740654635849,-150.99,0.00050766,30]
[354736388,1740654635858,-844.52,0.00050766,2]
[354736390,1740654635868,-951.0,0.00050836,120]
[354736392,1740654635877,-173.4,0.00050947,120]
[354736394,1740654635886,-153.56,0.00051324,2]
[354736396,1740654635896,-278.42,0.00051662,2]
[354736397,1740654635905,-742.64,0.00052393,2]
[354736398,1740654635915,-1235.48477924,0.00052665,30]
[354736399,1740654635924,-201.93271244,0.0005315,12]
[354736400,1740654635934,-409.31797453,0.00053833,30]
[354736401,1740654635943,-278.42,0.00053926,2]
[354736402,1740654635952,-492465.0,0.00054,120]
[354736403,1740654635961,-318.41214587,0.000542,2]
[354736404,1740654635970,-6202.57251393,0.000544,15]
[354736405,1740654635980,-154.2,0.000546,54]
[354736406,1740654635989,-154.2,0.000546,54]
[354736407,1740654635998,-154.2,0.000546,54]
[354736408,1740654636007,-154.2,0.000546,54]
[354736409,1740654636016,-154.2,0.000546,54]
[354736410,1740654636026,-154.2,0.000546,54]
[354736411,1740654636035,-154.2,0.000546,54]
[354736412,1740654636045,-154.2,0.000546,54]
[354736413,1740654636054,-6202.57251389,0.00054622,15]
[354736414,1740654636063,-742.64,0.00054774,2]
[354736415,1740654636073,-157.581798,0.00054783,4]
[354736416,1740654636082,-500.0,0.00054794,120]
[354736417,1740654636091,-503.45506993,0.00054794,120]
[354736418,1740654636101,-501.38662912,0.00054794,120]
[354736419,1740654636111,-502.35801705,0.00054794,120]
[354736420,1740654636120,-500.0,0.00054794,120]
[354736421,1740654636130,-500.0,0.00054794,120]
[354736422,1740654636139,-500.0,0.00054794,120]
[354736423,1740654636148,-513.24458011,0.00054794,120]
[354736424,1740654636157,-513.67140093,0.00054794,120]
[354736425,1740654636167,-522.93705802,0.00054794,20]
[354736426,1740654636176,-500.0,0.00054794,120]
[354736427,1740654636185,-500.0,0.00054794,120]
[354736428,1740654636195,-469.5544188,0.00054794,120]
[354736429,1740654636205,-516.38838989,0.00054794,120]
[354736430,1740654636215,-501.78708924,0.00054794,120]
[354736431,1740654636224,-500.0,0.00054794,120]
[354736432,1740654636234,-506.01705297,0.00054794,120]
[354736433,1740654636243,-512.12442714,0.00054794,120]
[354736434,1740654636252,-500.0,0.00054794,120]
[354736435,1740654636261,-517.66161362,0.00054794,120]
[354736436,1740654636271,-500.0,0.00054794,120]
[354736437,1740654636280,-500.0,0.00054794,120]
[354736438,1740654636289,-500.0,0.00054794,120]
[354736439,1740654636299,-500.0,0.00054794,120]
[354736440,1740654636307,-590.62564081,0.00054794,120]
[354736441,1740654636317,-500.0,0.00054794,120]
[354736442,1740654636326,-543.7615563,0.00054794,120]
[354736443,1740654636335,-500.0,0.00054794,120]
[354736444,1740654636345,-503.92601429,0.00054794,120]
[354736445,1740654636354,-504.86057825,0.00054794,120]
[354736446,1740654636363,-500.0,0.00054794,120]
[354736447,1740654636372,-500.0,0.00054794,120]
[354736448,1740654636381,-504.2641,0.00054794,120]
[354736449,1740654636390,-501.2439246,0.00054794,120]
[354736450,1740654636398,-506.39970713,0.00054794,120]
[354736451,1740654636407,-504.68030849,0.00054794,120]
[354736452,1740654636416,-500.0,0.00054794,120]
[354736453,1740654636425,-500.0,0.00054794,120]
[354736454,1740654636434,-501.32541931,0.00054794,120]
[354736455,1740654636443,-500.0,0.00054794,120]
[354736456,1740654636452,-500.0,0.00054794,120]
[354736457,1740654636461,-500.0,0.00054794,120]
[354736458,1740654636470,-500.0,0.00054794,120]
[354736459,1740654636480,-505.55285622,0.00054794,120]
[354736460,1740654636489,-500.0,0.00054794,120]
[354736461,1740654636499,-500.0,0.00054794,120]
[354736462,1740654636508,-500.70257136,0.00054794,120]
[354736463,1740654636516,-515.34,0.00054794,120]
[354736464,1740654636526,-500.0,0.00054794,120]
[354736465,1740654636535,-318.20153628,0.00054794,120]
[354736466,1740654636544,-500.0,0.00054794,120]
[354736467,1740654636555,-507.98723212,0.00054794,120]
[354736468,1740654636567,-500.0,0.00054794,120]
[354736469,1740654636576,-500.0,0.00054794,120]
[354736470,1740654636589,-382.84886142,0.00054794,120]
[354736471,1740654636598,-500.0,0.00054794,120]
[354736472,1740654636609,-500.0,0.00054794,120]
[354736473,1740654636618,-500.0,0.00054794,120]
[354736474,1740654636628,-500.0,0.00054794,120]
[354736475,1740654636639,-500.0,0.00054794,120]
[354736476,1740654636649,-500.0,0.00054794,120]
[354736477,1740654636659,-507.77991904,0.00054794,120]
[354736478,1740654636668,-500.0,0.00054794,120]
[354736479,1740654636678,-500.0,0.00054794,120]
[354736480,1740654636687,-503.66549894,0.00054794,120]
[354736481,1740654636696,-501.02651815,0.00054794,120]
[354736482,1740654636706,-503.84906587,0.00054794,120]
[354736483,1740654636717,-512.96945873,0.00054794,120]
[354736484,1740654636727,-500.0,0.00054794,120]
[354736485,1740654636738,-511.76510285,0.00054794,120]
[354736486,1740654636747,-512.2944279,0.00054794,120]
[354736487,1740654636756,-500.0,0.00054794,120]
[354736488,1740654636766,-500.0,0.00054794,120]
[354736489,1740654636776,-500.60174585,0.00054794,120]
[354736490,1740654636785,-411.93575737,0.00054794,120]
[354736491,1740654636794,-500.0,0.00054794,120]
[354736492,1740654636803,-500.0,0.00054794,120]
[354736493,1740654636812,-500.0,0.00054794,120]
[354736494,1740654636821,-500.0,0.00054794,120]
[354736495,1740654636830,-500.0,0.00054794,120]
[354736496,1740654636839,-500.0,0.00054794,120]
[354736497,1740654636847,-500.57761226,0.00054794,120]
[354736498,1740654636856,-599.38250849,0.00054794,120]
[354736499,1740654636866,-500.0,0.00054794,120]
[354736500,1740654636875,-500.0,0.00054794,120]
[354736501,1740654636885,-500.0,0.00054794,120]
[354736502,1740654636894,-505.4367873,0.00054794,120]
[354736503,1740654636904,-383.3468877,0.00054794,120]
[354736504,1740654636913,-500.0,0.00054794,120]
[354736505,1740654636923,-490.48307246,0.00054794,120]
[354736506,1740654636932,-500.0,0.00054794,120]
[354736507,1740654636942,-500.0,0.00054794,120]
[354736508,1740654636951,-500.0,0.00054794,120]
[354736509,1740654636960,-500.0,0.00054794,120]
[354736510,1740654636970,-500.0,0.00054794,120]
[354736511,1740654636979,-502.37992106,0.00054794,120]
[354736512,1740654636989,-500.0,0.00054794,120]
[354736513,1740654636998,-500.0,0.00054794,120]
[354736514,1740654637007,-500.0,0.00054794,120]
[354736515,1740654637017,-502.03113889,0.00054794,120]
[354736516,1740654637027,-500.0,0.00054794,120]
[354736517,1740654637037,-325.98048061,0.00054794,120]
[354736518,1740654637047,-500.0,0.00054794,120]
[354736519,1740654637056,-500.0,0.00054794,120]
[354736520,1740654637065,-500.0,0.00054794,120]
[354736521,1740654637075,-500.0,0.00054794,120]
[354736522,1740654637220,-500.0,0.00054794,120]
[354736523,1740654637231,-500.0,0.00054794,120]
[354736524,1740654637240,-503.84334273,0.00054794,120]
[354736525,1740654637249,-500.0,0.00054794,120]
[354736526,1740654637258,-500.0,0.00054794,120]
[354736527,1740654637268,-504.37162924,0.00054794,120]
[354736528,1740654637278,-505.53024728,0.00054794,120]
[354736529,1740654637287,-500.0,0.00054794,120]
[354736530,1740654637296,-500.0,0.00054794,120]
[354736531,1740654637305,-506.82306048,0.00054794,120]
[354736532,1740654637314,-500.0,0.00054794,120]
[354736533,1740654637323,-335.93549782,0.00054794,120]
[354736534,1740654637332,-500.0,0.00054794,120]
[354736535,1740654637343,-500.0,0.00054794,120]
[354736536,1740654637352,-504.10991221,0.00054794,120]
[354736537,1740654637361,-586.03,0.00054794,120]
[354736538,1740654637370,-500.0,0.00054794,120]
[354736539,1740654637379,-500.0,0.00054794,120]
[354736540,1740654637389,-500.0,0.00054794,120]
[354736541,1740654637398,-507.33376051,0.00054794,120]
[354736542,1740654637407,-500.0,0.00054794,120]
[354736543,1740654637416,-500.0,0.00054794,120]
[354736544,1740654637425,-500.0,0.00054794,120]
[354736545,1740654637434,-500.0,0.00054794,120]
[354736546,1740654637444,-500.0,0.00054794,120]
[354736547,1740654637454,-500.0,0.00054794,120]
[354736548,1740654637463,-500.0,0.00054794,120]
[354736549,1740654637472,-500.0,0.00054794,120]
[354736550,1740654637481,-500.0,0.00054794,120]
[354736551,1740654637491,-500.0,0.00054794,120]
[354736552,1740654637500,-525.20262015,0.00054794,120]
[354736554,1740654637509,-500.0,0.00054794,120]
[354736556,1740654637518,-500.0,0.00054794,120]
[354736558,1740654637528,-2828.75,0.00054794,120]
[354736559,1740654637537,-500.0,0.00054794,120]
[354736561,1740654637546,-500.0,0.00054794,120]
[354736563,1740654637556,-500.0,0.00054794,120]
[354736565,1740654637568,-216.15559845,0.00054794,120]
[354736567,1740654637578,-500.0,0.00054794,120]
[354736568,1740654637587,-500.0,0.00054794,120]
[354736569,1740654637597,-500.0,0.00054794,120]
[354736570,1740654637607,-500.0,0.00054794,120]
[354736571,1740654637616,-500.0,0.00054794,120]
[354736572,1740654637626,-1913.645941,0.00054794,120]
[354736573,1740654637635,-500.0,0.00054794,120]
[354736574,1740654637646,-500.0,0.00054794,120]
[354736575,1740654637655,-500.0,0.00054794,120]
[354736576,1740654637665,-500.0,0.00054794,120]
[354736577,1740654637674,-500.0,0.00054794,120]
[354736578,1740654637683,-500.0,0.00054794,120]
[354736579,1740654637692,-500.0,0.00054794,120]
[354736580,1740654637702,-500.0,0.00054794,120]
[354736581,1740654637711,-2199.86,0.00054794,120]
[354736582,1740654637720,-500.0,0.00054794,120]
[354736583,1740654637729,-500.0,0.00054794,120]
[354736584,1740654637738,-500.0,0.00054794,120]
[354736585,1740654637748,-500.0,0.00054794,120]
[354736586,1740654637757,-500.0,0.00054794,120]
[354736587,1740654637766,-500.0,0.00054794,120]
[354736588,1740654637776,-500.0,0.00054794,120]
[354736589,1740654637785,-500.0,0.00054794,120]
[354736590,1740654637794,-500.0,0.00054794,120]
[354736591,1740654637803,-500.0,0.00054794,120]
[354736592,1740654637812,-500.0,0.00054794,120]
[354736593,1740654637821,-500.0,0.00054794,120]
[354736594,1740654637830,-500.0,0.00054794,120]
[354736595,1740654637839,-500.0,0.00054794,120]
[354736596,1740654637848,-163.43,0.00054794,120]
[354736597,1740654637858,-500.0,0.00054794,120]
[354736598,1740654637867,-535.8,0.00054794,120]
[354736599,1740654637876,-6505.37,0.00054794,120]
[354736600,1740654637885,-500.0,0.00054794,120]
[354736601,1740654637895,-500.0,0.00054794,120]
[354736602,1740654637903,-497.0,0.00054794,120]
[354736603,1740654637916,-500.0,0.00054794,120]
[354736604,1740654637925,-500.0,0.00054794,120]
[354736605,1740654637934,-500.0,0.00054794,120]
[354736606,1740654637943,-940.35,0.00054794,120]
[354736607,1740654637953,-500.0,0.00054794,120]
[354736608,1740654637962,-3032.36,0.00054794,120]
[354736609,1740654637971,-500.0,0.00054794,120]
[354736610,1740654637980,-500.0,0.00054794,120]
[354736611,1740654637989,-358.37,0.00054794,120]
[354736612,1740654637998,-500.0,0.00054794,7]
[354736613,1740654638009,-500.0,0.00054794,120]
[354736614,1740654638018,-500.0,0.00054794,120]
[354736615,1740654638028,-500.0,0.00054794,120]
[354736616,1740654638037,-500.0,0.00054794,120]
[354736617,1740654638046,-500.0,0.00054794,120]
[354736618,1740654638055,-202.6,0.00054794,120]
[354736619,1740654638065,-757.78,0.00054794,120]
[354736620,1740654638075,-500.0,0.00054794,120]
[354736621,1740654638084,-301.97,0.00054794,120]
[354736622,1740654638094,-1118.23,0.00054794,120]
[354736623,1740654638103,-500.0,0.00054794,120]
[354736624,1740654638113,-3256.8,0.00054794,120]
[354736626,1740654638122,-500.0,0.00054794,120]
[354736627,1740654638131,-500.0,0.00054794,120]
[354736628,1740654638139,-500.0,0.00054794,120]
[354736629,1740654638149,-500.0,0.00054794,120]
[354736630,1740654638158,-529.55,0.00054794,120]
[354736631,1740654638167,-500.0,0.00054794,120]
[354736633,1740654638176,-500.0,0.00054794,120]
[354736634,1740654638185,-500.0,0.00054794,120]
[354736635,1740654638194,-500.0,0.00054794,120]
[354736636,1740654638203,-500.0,0.00054794,120]
[354736637,1740654638213,-2841.91,0.00054794,120]
[354736638,1740654638223,-500.0,0.00054794,120]
[354736639,1740654638233,-500.0,0.00054794,120]
[354736640,1740654638242,-500.0,0.00054794,120]
[354736641,1740654638251,-500.0,0.00054794,120]
[354736642,1740654638261,-470.0,0.00054794,120]
[354736643,1740654638270,-500.0,0.00054794,120]
[354736644,1740654638282,-500.0,0.00054794,120]
[354736645,1740654638291,-500.0,0.00054794,120]
[354736646,1740654638300,-500.0,0.00054794,120]
[354736647,1740654638309,-153.021552,0.00054794,120]
[354736648,1740654638318,-500.0,0.00054794,120]
[354736649,1740654638327,-500.0,0.00054794,120]
[354736650,1740654638336,-500.0,0.00054794,120]
[354736651,1740654638345,-500.0,0.00054794,120]
[354736652,1740654638354,-500.0,0.00054794,120]
[354736653,1740654638363,-151.442006,0.00054794,120]
[354736654,1740654638372,-500.0,0.00054794,120]
[354736655,1740654638381,-500.0,0.00054794,120]
[354736656,1740654638390,-500.0,0.00054794,120]
[354736657,1740654638399,-500.0,0.00054794,120]
[354736658,1740654638408,-6202.57251389,0.00054844,15]
[354736659,1740654638417,-88888.0,0.00054899,120]
[354736660,1740654638428,-9416.1412,0.000549,2]
[354736661,1740654638443,-150.2095311,0.00054968,58]
[354736662,1740654638451,-168.0,0.0005497,30]
[354736663,1740654638460,-150.5,0.0005498,30]
[354736664,1740654638469,-150.5,0.0005499,30]
[354736665,1740654638478,-310.05228214,0.00054998,120]
[354736666,1740654638487,-500.0,0.00054998,120]
[354736667,1740654638496,-509.38614857,0.00054998,120]
[354736668,1740654638505,-500.0,0.00054999,120]
[354736669,1740654638515,-503.33973367,0.00054999,120]
[354736670,1740654638526,-500.0,0.00054999,120]
[354736671,1740654638535,-502.04825383,0.00054999,120]
[354736672,1740654638545,-500.0,0.00054999,120]
[354736673,1740654638554,-500.0,0.00054999,120]
[354736674,1740654638566,-500.0,0.00054999,120]
[354736675,1740654638575,-500.0,0.00054999,120]
[354736676,1740654638585,-518.34,0.00054999,2]
[354736677,1740654638594,-500.0,0.00054999,120]
[354736678,1740654638603,-500.0,0.00054999,120]
[354736679,1740654638613,-500.0,0.00054999,120]
[354736680,1740654638624,-502.93527867,0.00054999,120]
[354736681,1740654638633,-505.11316305,0.00054999,120]
[354736682,1740654638644,-503.08185982,0.00054999,120]
[354736683,1740654638654,-500.0,0.00054999,120]
[354736684,1740654638663,-500.0,0.00054999,120]
[354736685,1740654638673,-500.0,0.00054999,120]
[354736686,1740654638682,-504.33120442,0.00054999,120]
[354736687,1740654638691,-501.67278968,0.00054999,120]
[354736688,1740654638701,-500.0,0.00054999,120]
[354736689,1740654638711,-500.0,0.00054999,120]
[354736690,1740654638720,-503.08883531,0.00054999,120]
[354736691,1740654638729,-500.0,0.00054999,120]
[354736692,1740654638738,-500.0,0.00054999,120]
[354736693,1740654638747,-500.0,0.00054999,120]
[354736694,1740654638756,-500.0,0.00054999,120]
[354736695,1740654638766,-500.0,0.00054999,120]
[354736696,1740654638777,-520.12947044,0.00054999,120]
[354736697,1740654638786,-405.9062598,0.00054999,120]
[354736698,1740654638832,-94.0937402,0.00054999,120]
[354736699,1740654638841,-500.0,0.00054999,120]
[354736700,1740654638850,-500.0,0.00054999,120]
[354736701,1740654638859,-611.88677955,0.00054999,120]
[354736702,1740654638867,-209.68665305,0.00054999,120]
[354736703,1740654638877,-500.0,0.00054999,120]
[354736704,1740654638886,-507.55379026,0.00054999,120]
[354736705,1740654638895,-500.0,0.00054999,120]
[354736706,1740654638904,-498.54081548,0.00054999,120]
[354736707,1740654638913,-501.81708841,0.00054999,120]
[354736708,1740654638922,-521.30695129,0.00054999,120]
[354736709,1740654638931,-1157.60561421,0.00054999,120]
[354736710,1740654638943,-969.41438579,0.00054999,120]
[354736711,1740654638952,-500.0,0.00054999,120]
[354736712,1740654638961,-500.0,0.00054999,120]
[354736713,1740654638970,-500.0,0.00054999,120]
[354736714,1740654638979,-245.17063628,0.00054999,120]
[354736715,1740654638989,-502.28098459,0.00054999,120]
[354736716,1740654638998,-500.0,0.00054999,120]
[354736717,1740654639008,-500.0,0.00054999,120]
[354736718,1740654639017,-522.61881304,0.00054999,120]
[354736719,1740654639027,-500.0,0.00054999,120]
[354736720,1740654639036,-500.0,0.00054999,120]
[354736721,1740654639045,-500.0,0.00054999,120]
[354736722,1740654639054,-201.81671271,0.00054999,120]
[354736723,1740654639066,-298.18328729,0.00054999,120]
[354736724,1740654639075,-500.0,0.00054999,120]
[354736725,1740654639083,-507.35325059,0.00054999,120]
[354736726,1740654639092,-506.50423349,0.00054999,120]
[354736727,1740654639101,-500.0,0.00054999,120]
[354736728,1740654639110,-391.27577865,0.00054999,120]
[354736729,1740654639119,-500.0,0.00054999,120]
[354736730,1740654639128,-500.0,0.00054999,120]
[354736731,1740654639136,-207.66592359,0.00054999,120]
[354736732,1740654639145,-500.0,0.00054999,120]
[354736733,1740654639154,-412.48363725,0.00054999,120]
[354736734,1740654639170,-87.51636275,0.00054999,120]
[354736735,1740654639179,-500.0,0.00054999,30]
[354736736,1740654639187,-501.48144669,0.00054999,120]
[354736737,1740654639196,-500.0,0.00054999,120]
[354736738,1740654639206,-500.0,0.00054999,120]
[354736739,1740654639214,-506.89220691,0.00054999,120]
[354736740,1740654639224,-500.0,0.00054999,120]
[354736741,1740654639233,-500.92910917,0.00054999,120]
[354736742,1740654639242,-500.0,0.00054999,120]
[354736743,1740654639251,-500.0,0.00054999,120]
[354736744,1740654639260,-500.99037366,0.00054999,120]
[354736745,1740654639269,-500.0,0.00054999,120]
[354736746,1740654639280,-500.0,0.00054999,120]